bitfinex/quotes_SOLUSD_20250424
["timestamp","ask_amount","ask_price","bid_price","bid_amount"]
[1745468690630,6.76508985,148.48,148.46,8.94353188]
[1745468692337,6.76508985,148.48,148.45,8.94353188]
[1745468697747,1.35181066,148.47,148.44,26.0]
[1745468698043,8.94353188,148.45,148.4,8.94353188]
[1745468698242,1.35181066,148.44,148.4,34.94353188]
[1745468698447,8.94353188,148.46,148.41,8.94353188]
[1745468698648,1.35181066,148.45,148.41,8.94353188]
[1745468699019,2.99131066,148.47,148.44,8.94353188]
[1745468699828,6.6299,148.43,148.37,1e-08]
[1745468700032,8.94353188,148.38,148.37,1e-08]
[1745468700845,1.35181066,148.39,148.37,1e-08]
[1745468701142,8.94353188,148.38,148.37,1e-08]
[1745468701519,10.54733188,148.38,148.37,1e-08]
[1745468701720,17.28678463,148.38,148.37,1e-08]
[1745468702927,8.34325275,148.38,148.37,1e-08]
[1745468703330,17.28678463,148.38,148.37,1e-08]
[1745468709644,6.73945275,148.38,148.37,1e-08]
[1745468710461,8.09094052,148.39,148.37,1e-08]
[1745468710629,6.73912986,148.39,148.38,8.94353188]
[1745468711148,6.73864197,148.4,148.38,8.94353188]
[1745468711443,6.73809042,148.41,148.38,8.94353188]
[1745468715470,22.13771687,148.42,148.4,8.94353188]
[1745468715667,6.73672864,148.44,148.41,8.94353188]
[1745468715861,8.0885393,148.44,148.38,18.79181043]
[1745468716162,6.73672864,148.44,148.43,8.94353188]
[1745468716657,6.73642753,148.45,148.43,8.94353188]
[1745468716858,6.73642753,148.45,148.42,8.94353188]
[1745468717866,6.73642753,148.45,148.43,8.94353188]
[1745468718067,6.73642753,148.45,148.42,8.94353188]
[1745468718980,8.0876867,148.46,148.43,8.94353188]
[1745468719271,8.0876867,148.46,148.44,8.94353188]
[1745468719648,8.0876867,148.46,148.43,8.94353188]
[1745468719859,6.73587604,148.46,148.43,8.94353188]
[1745468720365,23.48726996,148.47,148.44,8.94353188]
[1745468720559,22.1354593,148.47,148.45,8.94353188]
[1745468721565,22.1354593,148.47,148.44,8.94353188]
[1745468722257,22.1354593,148.47,148.45,8.94353188]
[1745468722577,26.0,148.45,148.37,1e-08]
[1745468722765,8.94353188,148.4,148.37,1e-08]
[1745468722957,1.35181066,148.39,148.37,1e-08]
[1745468723147,6.73945275,148.38,148.37,1e-08]
[1745468724764,8.09093786,148.39,148.37,8.94353189]
[1745468724944,6.7391272,148.39,148.37,1e-08]
[1745468725355,1.35181066,148.38,148.37,1e-08]
[1745468727271,8.09126341,148.38,148.37,1e-08]
[1745468730679,6.73945275,148.38,148.37,1e-08]
[1745468734382,6.73901685,148.39,148.37,13.98523737]
[1745468734760,15.4,148.41,148.38,13.98523736]
[1745468734964,22.13812726,148.41,148.39,13.98523736]
[1745468735178,6.73812726,148.41,148.39,13.98523736]
[1745468736899,6.73812726,148.41,148.38,13.98523736]
[1745468737761,6.73812726,148.41,148.39,13.98523736]
[1745468738593,8.08941104,148.43,148.4,13.98523736]
[1745468738767,8.08941104,148.43,148.41,13.98523736]
[1745468738768,6.73760038,148.43,148.41,13.98523736]
[1745468741593,1.35181066,148.42,148.37,1e-08]
[1745468741775,1.35181066,148.42,148.39,13.98523736]
[1745468742276,1.35181066,148.42,148.38,13.98523736]
[1745468742475,15.33704802,148.42,148.37,1e-08]
[1745468742676,15.33704802,148.42,148.37,13.98523737]
[1745468743793,6.73809042,148.41,148.37,13.98523737]
[1745468744015,1.35181066,148.4,148.37,1e-08]
[1745468744491,6.73809042,148.41,148.37,13.98523737]
[1745468744790,1.35181066,148.4,148.37,13.98523737]
[1745468744987,1.35181066,148.4,148.37,1e-08]
[1745468745498,15.33704802,148.4,148.37,1e-08]
[1745468746103,6.73899858,148.39,148.37,1e-08]
[1745468746401,1.35181066,148.38,148.37,1e-08]
[1745468747086,8.09126341,148.38,148.37,1e-08]
[1745468747393,6.73945275,148.38,148.37,1e-08]
[1745468749198,6.73899858,148.39,148.37,1e-08]
[1745468752809,10.30141574,148.38,148.37,1e-08]
[1745468753779,1.35181066,148.38,148.37,1e-08]
[1745468753995,10.30141574,148.38,148.37,1e-08]
[1745468754590,1.35181066,148.38,148.37,1e-08]
[1745468754983,17.04086849,148.38,148.37,1e-08]
[1745468760337,8.09126341,148.38,148.37,1e-08]
[1745468761685,17.04086849,148.38,148.37,1e-08]
[1745468761904,35.69051735,148.38,148.37,1e-08]
[1745468762109,18.64964886,148.37,148.34,1e-08]
[1745468762415,10.52800508,148.35,148.33,1e-08]
[1745468762591,25.70141574,148.34,148.33,1e-08]
[1745468763095,44.3510646,148.34,148.32,0.063]
[1745468763299,6.74217907,148.32,148.31,0.063]
[1745468763496,18.64964886,148.31,148.3,1e-08]
[1745468763808,27.59925394,148.31,148.3,1e-08]
[1745468764005,8.94960508,148.31,148.3,1e-08]
[1745468764220,8.09398973,148.32,148.3,1e-08]
[1745468769400,8.09360769,148.33,148.31,13.9991005]
[1745468769619,1.35181066,148.33,148.31,13.9991005]
[1745468770131,8.09358971,148.33,148.3,13.99910051]
[1745468771031,8.09358971,148.33,148.31,13.9991005]
[1745468772025,22.09269021,148.33,148.3,1e-08]
[1745468772527,13.9991005,148.32,148.3,1e-08]
[1745468772831,1.35181066,148.31,148.3,1e-08]
[1745468773620,1.35181066,148.32,148.3,1e-08]
[1745468773923,8.09434115,148.32,148.3,1e-08]
[1745468775032,8.09434115,148.32,148.3,13.99910051]
[1745468775203,1.35181066,148.32,148.3,13.99910051]
[1745468775536,1.35181066,148.33,148.3,13.99910051]
[1745468776039,1.35181066,148.33,148.3,1e-08]
[1745468776217,246.64,148.36,148.32,13.9991005]
[1745468776416,15.38,148.36,148.35,13.9991005]
[1745468776613,1.35181066,148.38,148.35,13.9991005]
[1745468776813,8.09126477,148.38,148.37,13.9991005]
[1745468777313,8.09126477,148.38,148.36,13.9991005]
[1745468777854,1.35181066,148.38,148.37,13.9991005]
[1745468779249,8.09096638,148.39,148.37,13.9991005]
[1745468779447,8.09096638,148.39,148.36,13.9991005]
[1745468780752,22.09006688,148.39,148.33,26.0]
[1745468781049,22.09006688,148.39,148.34,13.9991005]
[1745468781224,8.09096638,148.39,148.35,13.9991005]
[1745468784338,8.09096638,148.39,148.37,13.9991005]
[1745468784339,6.73915572,148.39,148.37,13.9991005]
[1745468785038,6.73915572,148.39,148.36,13.9991005]
[1745468785247,6.73915572,148.39,148.37,13.9991005]
[1745468786141,6.73915572,148.39,148.33,46.2725005]
[1745468786344,6.73915572,148.39,148.36,13.9991005]
[1745468786847,1.35181066,148.38,148.33,32.2734]
[1745468787036,1.35181066,148.38,148.33,26.0]
[1745468787246,1.35181066,148.38,148.35,13.9991005]
[1745468787559,6.73915572,148.39,148.36,13.9991005]
[1745468787560,8.09096638,148.39,148.36,13.9991005]
[1745468788049,8.09096638,148.39,148.35,13.9991005]
[1745468789550,8.09096638,148.39,148.35,8.95030612]
[1745468789755,1.35181066,148.39,148.37,8.95030612]
[1745468789936,22.11859097,148.4,148.38,8.95030612]
[1745468790257,22.11854447,148.4,148.39,8.95030612]
[1745468790942,22.11854447,148.4,148.38,8.95030612]
[1745468791359,22.11854447,148.4,148.38,13.97974358]
[1745468793451,2.93411066,148.43,148.39,13.97974358]
[1745468793653,2.93411066,148.43,148.4,13.97974358]
[1745468794335,2.93411066,148.43,148.39,13.97974358]
[1745468794653,6.73781218,148.42,148.4,13.97974358]
[1745468796671,6.73781218,148.42,148.39,13.97974358]
[1745468797266,6.73781218,148.42,148.4,13.97974358]
[1745468801136,6.73730635,148.43,148.41,13.97974358]
[1745468801457,1.35181066,148.42,148.39,13.97974358]
[1745468802073,6.73809042,148.41,148.39,13.97974358]
[1745468802275,6.73809042,148.41,148.35,6.2419]
[1745468802569,13.97974358,148.36,148.3,1e-08]
[1745468802775,13.97974358,148.33,148.3,1e-08]
[1745468802980,1.35181066,148.32,148.3,1e-08]
[1745468803147,1.35181066,148.32,148.3,13.97974359]
[1745468803352,1.35181066,148.33,148.3,13.97974359]
[1745468803653,1.35181066,148.33,148.3,1e-08]
[1745468804278,6.74217907,148.32,148.3,1e-08]
[1745468804450,6.74217907,148.32,148.3,13.97974359]
[1745468804655,16.71181066,148.34,148.31,39.97974358]
[1745468804873,23.45316328,148.34,148.3,13.97974359]
[1745468805771,37.43290686,148.34,148.3,1e-08]
[1745468806973,23.45316328,148.34,148.3,1e-08]
[1745468807758,22.10135262,148.34,148.31,13.97974358]
[1745468808777,1.35181066,148.35,148.3,26.00000001]
[1745468808986,1.35181066,148.35,148.32,13.97974358]
[1745468809165,1.35181066,148.35,148.31,13.97974358]
[1745468810366,6.74127005,148.34,148.31,13.97974358]
[1745468811672,6.74127005,148.34,148.32,13.97974358]
[1745468813569,6.74036128,148.36,148.33,13.97974358]
[1745468813879,6.74007111,148.37,148.34,13.97974358]
[1745468814065,8.09136974,148.38,148.35,13.97974358]
[1745468814887,23.73223764,148.39,148.36,13.97974358]
[1745468815082,25.0840483,148.39,148.36,13.97974358]
[1745468815985,1.35181066,148.38,148.36,13.97974358]
[1745468816379,23.73223764,148.39,148.36,13.97974358]
[1745468817387,1.35181066,148.38,148.36,13.97974358]
[1745468817785,8.0916933,148.38,148.36,13.97974358]
[1745468819185,6.73988264,148.38,148.36,13.97974358]
[1745468821870,6.73988264,148.38,148.35,13.97974358]
[1745468822074,8.0916933,148.38,148.35,13.97974358]
[1745468822292,8.0916933,148.38,148.34,13.97974358]
[1745468822694,38.92006877,148.38,148.33,13.97974358]
[1745468822903,38.92006877,148.38,148.32,13.97974358]
[1745468823185,38.92006877,148.38,148.33,13.97974358]
[1745468824077,24.94032519,148.38,148.34,13.97974358]
[1745468824478,24.94032519,148.38,148.3,32.74306816]
[1745468824804,24.94032519,148.38,148.34,13.97974358]
[1745468825001,8.0916933,148.38,148.33,26.0]
[1745468825295,22.09913928,148.39,148.37,8.9471896]
[1745468825893,1.35181066,148.38,148.37,8.9471896]
[1745468826187,22.09913928,148.39,148.36,8.9471896]
[1745468826400,23.45094994,148.39,148.34,34.9471896]
[1745468826701,49.245636,148.39,148.34,8.9471896]
[1745468827399,49.245636,148.39,148.33,34.9471896]
[1745468827578,8.9471896,148.38,148.33,34.9471896]
[1745468827783,1.35181066,148.37,148.33,34.9471896]
[1745468828292,1.35181066,148.37,148.33,26.0]
[1745468829591,6.74036128,148.36,148.3,1e-08]
[1745468829799,1.35181066,148.35,148.31,8.9471896]
[1745468830785,1.35181066,148.35,148.32,8.9471896]
[1745468831203,6.74127005,148.34,148.32,8.9471896]
[1745468831409,1.35181066,148.33,148.32,8.9471896]
[1745468832699,6.74127005,148.34,148.32,8.9471896]
[1745468832925,1.35181066,148.35,148.33,8.9471896]
[1745468833086,8.9471896,148.38,148.34,8.9471896]
[1745468833087,8.09163354,148.38,148.34,8.9471896]
[1745468833297,1.35181066,148.38,148.36,8.9471896]
[1745468833477,22.09910954,148.39,148.37,8.9471896]
[1745468833672,15.36,148.39,148.37,8.9471896]
[1745468833878,8.09049975,148.4,148.38,8.9471896]
[1745468834079,8.09049975,148.4,148.37,8.9471896]
[1745468834909,8.09049975,148.4,148.36,8.9471896]
[1745468835111,8.09049975,148.4,148.35,26.0]
[1745468835314,8.09049975,148.4,148.36,8.9471896]
[1745468836408,24.93686093,148.4,148.33,35.7887584]
[1745468836602,8.9471896,148.39,148.32,26.0]
[1745468836903,1.35181066,148.38,148.34,8.9471896]
[1745468837404,1.35181066,148.38,148.35,8.9471896]
[1745468837789,1.35181066,148.39,148.35,8.9471896]
[1745468838007,6.73945275,148.38,148.35,8.9471896]
[1745468838203,1.35181066,148.37,148.35,8.9471896]
[1745468838800,1.35181066,148.37,148.33,34.9471896]
[1745468839004,1.35181066,148.37,148.33,8.9471896]
[1745468840010,6.74036128,148.36,148.34,8.9471896]
[1745468841013,8.09176256,148.37,148.35,8.9471896]
[1745468841314,6.7399519,148.37,148.36,8.9471896]
[1745468841490,6.7399519,148.37,148.35,8.9471896]
[1745468843612,23.4314258,148.38,148.36,8.9471896]
[1745468843907,22.07961514,148.38,148.35,8.9471896]
[1745468844103,23.4314258,148.38,148.35,8.9471896]
[1745468844314,0.03,148.41,148.37,8.9471896]
[1745468844524,0.03,148.41,148.39,8.9471896]
[1745468844689,6.76824199,148.41,148.36,26.0]
[1745468844885,1.35181066,148.4,148.36,26.0]
[1745468845197,1.35181066,148.4,148.37,8.9471896]
[1745468846314,6.73899858,148.39,148.38,8.9471896]
[1745468846500,1.38181066,148.41,148.38,8.9471896]
[1745468847090,6.73866603,148.4,148.38,8.9471896]
[1745468848917,1.35181066,148.39,148.37,8.9471896]
[1745468849412,1.35181066,148.39,148.38,8.9471896]
[1745468849614,8.12005375,148.41,148.38,8.9471896]
[1745468849823,8.12005375,148.41,148.39,8.9471896]
[1745468850324,8.12005375,148.41,148.38,8.9471896]
[1745468851321,33.91246941,148.41,148.36,8.9471896]
[1745468851517,8.12005375,148.41,148.38,8.9471896]
[1745468851701,8.12005375,148.41,148.39,8.9471896]
[1745468852932,8.12005375,148.41,148.37,26.0]
[1745468853129,8.12005375,148.41,148.38,8.9471896]
[1745468853420,8.12005375,148.41,148.39,8.9471896]
[1745468853917,8.12005375,148.41,148.37,26.0]
[1745468854107,8.12005375,148.41,148.37,34.9471896]
[1745468855024,8.12005375,148.41,148.37,8.9471896]
[1745468855716,33.91246941,148.41,148.36,8.9471896]
[1745468855919,8.9471896,148.4,148.35,26.0]
[1745468856095,1.35181066,148.39,148.34,26.0]
[1745468856300,1.35181066,148.39,148.34,34.9471896]
[1745468856596,10.29900026,148.39,148.34,8.9471896]
[1745468857316,6.73945275,148.38,148.34,8.9471896]
[1745468857517,1.35181066,148.37,148.34,8.9471896]
[1745468858926,6.74036128,148.36,148.34,8.9471896]
[1745468859223,1.35181066,148.35,148.33,8.9471896]
[1745468860426,8.0930091,148.35,148.33,8.9471896]
[1745468861624,1.35181066,148.35,148.34,8.9471896]
[1745468861931,6.74046108,148.36,148.34,8.9471896]
[1745468862112,6.74046108,148.36,148.35,8.9471896]
[1745468862596,6.73990698,148.37,148.35,8.9471896]
[1745468862800,8.09142154,148.38,148.36,8.9471896]
[1745468863000,8.09142154,148.38,148.37,8.9471896]
[1745468863820,1.35181066,148.38,148.37,8.9471896]
[1745468864017,1.35181066,148.39,148.37,8.9471896]
[1745468864205,1.35181066,148.39,148.38,8.9471896]
[1745468864406,1.35181066,148.39,148.37,8.9471896]
[1745468865025,8.12004343,148.41,148.38,8.9471896]
[1745468865228,8.12004343,148.41,148.39,8.9471896]
[1745468865526,8.12004343,148.41,148.37,8.9471896]
[1745468866727,8.12004343,148.41,148.38,8.9471896]
[1745468868528,8.12004343,148.41,148.37,8.9471896]
[1745468869330,8.12004343,148.41,148.38,8.9471896]
[1745468869532,6.76823277,148.41,148.4,8.9471896]
[1745468869726,6.76823277,148.41,148.39,8.9471896]
[1745468874134,0.03,148.41,148.4,8.9471896]
[1745468876533,0.03,148.41,148.38,8.9471896]
[1745468877510,1.38181066,148.41,148.38,8.9471896]
[1745468878332,1.38181066,148.41,148.39,8.9471896]
[1745468879229,1.38181066,148.41,148.36,26.0]
[1745468879442,6.73854447,148.4,148.36,26.0]
[1745468879613,6.73854447,148.4,148.36,34.9471896]
[1745468879614,1.35181066,148.39,148.36,34.9471896]
[1745468881321,6.73945275,148.38,148.36,34.9471896]
[1745468881717,6.73945275,148.38,148.32,6.1062]
[1745468881925,1.35181066,148.37,148.33,8.9471896]
[1745468882346,1.35181066,148.37,148.34,8.9471896]
[1745468882537,1.35181066,148.37,148.35,8.9471896]
[1745468883542,1.35181066,148.37,148.34,8.9471896]
[1745468884345,8.09197701,148.37,148.34,8.9471896]
[1745468884649,8.09197701,148.37,148.35,8.9471896]
[1745468886252,1.35181066,148.39,148.36,8.9471896]
[1745468886423,8.09096507,148.39,148.37,8.9471896]
[1745468887043,8.09096507,148.39,148.33,6.74129466]
[1745468887227,8.09096507,148.39,148.37,8.9471896]
[1745468887435,8.09096507,148.39,148.36,34.9471896]
[1745468888938,8.09096507,148.39,148.35,34.9471896]
[1745468890545,8.09096507,148.39,148.34,26.0]
[1745468890546,8.9471896,148.38,148.34,26.0]
[1745468890745,1.35181066,148.37,148.34,26.0]
[1745468891647,6.7400998,148.37,148.34,34.9471896]
[1745468893649,6.7400998,148.37,148.35,8.9471896]
[1745468893954,24.9383057,148.39,148.3,1e-08]
[1745468894165,26.0,148.36,148.3,1e-08]
[1745468894321,20.14362109,148.35,148.3,1e-08]
[1745468894665,15.3,148.34,148.3,1e-08]
[1745468894959,1.35181066,148.33,148.3,1e-08]
[1745468895145,10.29900026,148.33,148.3,1e-08]
[1745468895332,8.9471896,148.32,148.3,1e-08]
[1745468895531,1.35181066,148.31,148.3,1e-08]
[1745468896053,8.09444433,148.31,148.3,1e-08]
[1745468896258,17.04163393,148.31,148.3,1e-08]
[1745468897371,22.09731471,148.31,148.3,1e-08]
[1745468901152,8.09444433,148.31,148.3,1e-08]
[1745468901537,1.35181066,148.32,148.3,14.00287039]
[1745468901743,1.35181066,148.33,148.31,14.00287038]
[1745468902250,1.35181066,148.33,148.3,14.00287039]
[1745468903655,8.09384517,148.33,148.3,14.00287039]
[1745468904248,8.09384517,148.33,148.3,1e-08]
[1745468904432,8.09384517,148.33,148.3,14.00287039]
[1745468904633,8.09384517,148.33,148.3,1e-08]
[1745468905759,22.09671555,148.33,148.3,1e-08]
[1745468907056,14.00287038,148.32,148.3,1e-08]
[1745468907361,8.09444433,148.31,148.3,1e-08]
[1745468907746,22.09731471,148.31,148.3,1e-08]
[1745468909163,22.09731471,148.31,148.25,0.063]
[1745468909164,14.00287038,148.27,148.25,0.063]
[1745468909357,37.39958863,148.26,148.25,0.063]
[1745468910445,56.04923749,148.26,148.25,0.063]
[1745468911463,56.19139906,148.26,148.25,0.063]
[1745468913138,23.39671825,148.26,148.25,0.063]
[1745468913351,16.65181066,148.26,148.25,0.063]
[1745468913551,23.39671825,148.26,148.25,0.063]
[1745468913865,15.3,148.26,148.25,0.063]
[1745468914163,15.3,148.26,148.25,14.06587038]
[1745468914556,8.09544309,148.29,148.25,14.06587038]
[1745468914763,8.09544309,148.29,148.26,14.00287038]
[1745468915264,1.35181066,148.29,148.26,14.00287038]
[1745468915659,8.09541304,148.29,148.26,14.00287038]
[1745468921161,23.41490489,148.3,148.28,14.00287038]
[1745468921472,23.41490489,148.3,148.27,14.00287038]
[1745468922070,15.32,148.3,148.28,14.00287038]
[1745468922376,15.32,148.3,148.29,14.00287038]
[1745468923155,23.41489899,148.3,148.28,14.00287038]
[1745468923364,23.41489899,148.3,148.26,40.00287038]
[1745468924076,23.41489899,148.3,148.27,14.00287038]
[1745468925866,23.41489899,148.3,148.25,0.063]
[1745468926167,14.00287038,148.29,148.25,0.063]
[1745468926340,15.35468104,148.28,148.25,0.063]
[1745468927173,1.35181066,148.28,148.25,0.063]
[1745468927566,8.09605064,148.28,148.25,0.063]
[1745468928271,8.09605064,148.28,148.25,14.06587038]
[1745468929355,8.09605064,148.28,148.25,0.063]
[1745468933377,17.05868979,148.28,148.25,0.063]
[1745468934885,8.09605064,148.28,148.25,0.063]
[1745468936478,1.35181066,148.29,148.26,8.96263915]
[1745468936673,8.09553464,148.29,148.26,8.96263915]
[1745468937381,8.09553464,148.29,148.27,8.96263915]
[1745468939275,6.74372398,148.29,148.27,8.96263915]
[1745468939588,1.35181066,148.3,148.28,8.96263915]
[1745468939893,1.35181066,148.31,148.28,8.96263915]
[1745468941183,6.74308833,148.3,148.28,8.96263915]
[1745468941358,6.74308833,148.3,148.27,8.96263915]
[1745468941682,1.35181066,148.29,148.25,35.02563915]
[1745468942068,1.35181066,148.29,148.26,8.96263915]
[1745468943287,6.74399784,148.28,148.26,8.96263915]
[1745468944160,6.74399784,148.28,148.25,35.02563915]
[1745468944360,6.74399784,148.28,148.25,26.063]
[1745468944981,6.74399784,148.28,148.25,35.02563915]
[1745468945181,6.74354305,148.29,148.25,35.02563915]
[1745468945395,1.35181066,148.28,148.25,35.02563915]
[1745468945889,6.74354305,148.29,148.26,8.96263915]
[1745468949867,6.74354305,148.29,148.25,35.02563915]
[1745468950089,6.74445268,148.27,148.25,35.02563915]
[1745468951385,8.09444433,148.31,148.26,8.96263915]
[1745468951576,8.09444433,148.31,148.27,8.96263915]
[1745468953587,8.09444433,148.31,148.25,26.063]
[1745468953789,17.05708348,148.31,148.26,8.96263915]
[1745468953978,8.96263915,148.29,148.25,0.063]
[1745468954174,10.31444981,148.28,148.25,0.063]
[1745468955088,8.96263915,148.27,148.25,0.063]
[1745468955264,23.39671825,148.26,148.25,0.063]
[1745468956689,32.3593574,148.26,148.25,0.063]
[1745468957098,32.3593574,148.26,148.25,1e-08]
[1745468958576,44.64964886,148.25,148.24,1e-08]
[1745468958895,286.65988801,148.25,148.22,1e-08]
[1745468959066,8.96263915,148.23,148.22,1e-08]
[1745468959896,15.70891183,148.23,148.22,1e-08]
[1745468960595,18.64964886,148.22,148.19,0.063]
[1745468960792,8.96263915,148.2,148.16,0.063]
[1745468960997,25.61444981,148.19,148.18,1e-08]
[1745468961172,27.26204981,148.19,148.18,1e-08]
[1745468961372,63.11260641,148.19,148.16,1e-08]
[1745468961587,8.96263915,148.17,148.16,1e-08]
[1745468961788,15.71164367,148.17,148.16,1e-08]
[1745468962203,6.74900452,148.17,148.16,1e-08]
[1745468962379,22.04900452,148.17,148.16,1e-08]
[1745468962579,32.36345433,148.17,148.16,1e-08]
[1745468963202,23.40081518,148.17,148.16,1e-08]
[1745468964899,8.10081518,148.17,148.16,1e-08]
[1745468965402,23.40081518,148.17,148.16,1e-08]
[1745468965696,15.3,148.17,148.16,1e-08]
[1745468968597,15.32,148.17,148.16,1e-08]
[1745468970788,15.32,148.17,148.16,14.0277206]
[1745468972713,15.32,148.18,148.16,14.0277206]
[1745468973012,15.32,148.18,148.17,14.02772059]
[1745468973578,15.32,148.18,148.16,1e-08]
[1745468973781,15.32,148.18,148.16,14.0277206]
[1745468976107,22.0686066,148.18,148.16,14.0277206]
[1745468977487,22.0686066,148.18,148.16,1e-08]
[1745468979225,1.35181066,148.17,148.16,1e-08]
[1745468979396,8.10081518,148.17,148.16,1e-08]
[1745468984316,37.38235418,148.17,148.16,1e-08]
[1745468987306,33.7103,148.15,148.1,0.063]
[1745468987611,8.97599014,148.11,148.1,0.063]
[1745468987819,8.97599014,148.12,148.1,0.063]
[1745468988003,1.35181066,148.11,148.1,0.063]
[1745468988819,8.10354923,148.11,148.1,0.063]
[1745468990319,17.07953937,148.11,148.1,0.063]
[1745468992413,8.10354923,148.11,148.1,0.063]
[1745468993498,24.06354923,148.11,148.1,0.063]
[1745468999117,8.10354923,148.11,148.1,0.063]
[1745468999417,24.06354923,148.11,148.1,0.063]
[1745469000427,15.96,148.11,148.1,9.03899014]
[1745469000732,15.96,148.11,148.1,0.063]
[1745469001110,17.31181066,148.11,148.1,0.063]
[1745469002030,26.2878008,148.11,148.1,0.063]
[1745469002328,33.03953937,148.11,148.1,0.063]
[1745469005319,1.5996,148.09,148.07,0.063]
[1745469005524,10.3278008,148.08,148.07,0.063]
[1745469006535,8.97599014,148.05,148.04,0.063]
[1745469006832,62.21176136,148.05,148.04,0.063]
[1745469007131,26.3078008,148.05,148.04,0.063]
[1745469008528,33.06227563,148.05,148.04,0.063]
[1745469009336,8.10628549,148.05,148.04,0.063]
[1745469009514,22.73447483,148.05,148.04,0.063]
[1745469009712,24.08628549,148.05,148.04,0.063]
[1745469009938,1.35181066,148.06,148.04,0.063]
[1745469010243,15.98,148.05,148.04,9.03899014]
[1745469012330,6.75321932,148.08,148.04,9.03899014]
[1745469012639,15.98,148.07,148.06,8.97599014]
[1745469012813,8.10459099,148.09,148.06,8.97599014]
[1745469013015,15.98,148.08,148.06,8.97599014]
[1745469013630,15.98,148.07,148.06,8.97599014]
[1745469014046,15.98,148.07,148.04,0.063]
[1745469014047,15.98,148.07,148.05,8.97599014]
[1745469014228,22.7335625,148.07,148.04,9.03899014]
[1745469014737,22.7335625,148.07,148.05,8.97599014]
[1745469014938,15.98,148.07,148.05,8.97599014]
[1745469016046,24.08551508,148.07,148.05,8.97599014]
[1745469016428,24.08551508,148.07,148.04,9.03899014]
[1745469017432,22.73370442,148.07,148.04,9.03899014]
[1745469017937,22.73370442,148.07,148.05,8.97599014]
[1745469018530,15.98,148.07,148.05,8.97599014]
[1745469021269,1.35181066,148.1,148.06,8.97599014]
[1745469021557,15.5,148.08,148.05,68.65826997]
[1745469022554,15.5,148.08,148.07,8.97599014]
[1745469022764,1.35181066,148.11,148.07,8.97599014]
[1745469022965,15.5,148.12,148.1,8.97599014]
[1745469023952,15.5,148.12,148.11,8.97599014]
[1745469025637,0.03,148.13,148.11,8.97599014]
[1745469025844,0.03,148.13,148.12,8.97599014]
[1745469026254,6.78082697,148.13,148.08,26.0]
[1745469026454,6.78082697,148.13,148.1,8.97599014]
[1745469028265,6.78082697,148.13,148.11,8.97599014]
[1745469030267,6.78082697,148.13,148.12,8.97599014]
[1745469030587,0.03,148.13,148.12,8.97599014]
[1745469031776,0.03,148.13,148.11,8.97599014]
[1745469032274,0.03,148.13,148.12,8.97599014]
[1745469035452,0.03,148.13,148.11,8.97599014]
[1745469035878,0.03,148.13,148.1,8.97599014]
[1745469036083,0.03,148.13,148.11,8.97599014]
[1745469037279,0.03,148.13,148.12,8.97599014]
[1745469038453,0.03,148.13,148.12,96.2808823]
[1745469038661,15.5,148.17,148.12,104.28470113]
[1745469038869,15.5,148.17,148.12,95.30871099]
[1745469039057,15.5,148.17,148.16,8.97599014]
[1745469040473,0.03,148.19,148.18,26.0]
[1745469040659,0.03,148.19,148.18,34.97599014]
[1745469041855,6.77820504,148.19,148.17,8.97599014]
[1745469042688,0.03,148.19,148.17,8.97599014]
[1745469042982,0.03,148.19,148.16,8.97599014]
[1745469042983,1.38181066,148.19,148.16,8.97599014]
[1745469043778,1.38181066,148.19,148.17,8.97599014]
[1745469043952,0.03,148.19,148.17,8.97599014]
[1745469046678,0.03,148.19,148.18,8.97599014]
[1745469046875,0.03,148.19,148.17,34.97599014]
[1745469047056,0.03,148.19,148.18,8.97599014]
[1745469049284,1.38181066,148.19,148.16,34.97599014]
[1745469050378,0.03,148.19,148.16,34.97599014]
[1745469050689,0.03,148.19,148.17,8.97599014]
[1745469051481,6.77809366,148.19,148.12,6.6537]
[1745469051697,1.35181066,148.18,148.14,8.97599014]
[1745469051985,10.3278008,148.18,148.13,8.97599014]
[1745469052186,10.3278008,148.18,148.13,34.97599014]
[1745469052390,1.35181066,148.18,148.09,6.75219795]
[1745469052695,1.35181066,148.18,148.12,8.97599014]
[1745469052696,8.97599014,148.17,148.12,8.97599014]
[1745469052999,23.64832781,148.19,148.08,26.45061043]
[1745469053000,25.6278008,148.16,148.08,14.41173558]
[1745469053290,6.75037127,148.14,148.1,8.97599014]
[1745469053487,8.10218193,148.14,148.1,34.97599014]
[1745469053871,6.75037127,148.14,148.12,8.97599014]
[1745469054381,6.75037127,148.14,148.11,8.97599014]
[1745469055081,1.35181066,148.15,148.13,8.97599014]